[Event "GrandPrix_30.05"]
[Site "Chess.com"]
[Date "2020.05.30"]
[Round "7"]
[White "Grandelicious"]
[Black "ChessQueen"]
[Result "0-1"]
[WhiteElo "2522"]
[BlackElo "2414"]
[TimeControl "600+2"]
[EndTime "11:24:50 PDT"]
[Termination "ChessQueen won by resignation"]

1. Nf3 {[%clk 0:10:01.9]} 1... Nf6 {[%clk 0:10:00]} 2. g3 {[%clk 0:10:02.9]}
2... b6 {[%clk 0:10:00.9]} 3. Bg2 {[%clk 0:10:03.2]} 3... Bb7 {[%clk 0:10:02]}
4. O-O {[%clk 0:10:04.7]} 4... e6 {[%clk 0:10:03.3]} 5. d3 {[%clk 0:10:02.9]}
5... d5 {[%clk 0:09:57]} 6. b3 {[%clk 0:09:53.1]} 6... Be7 {[%clk 0:09:53]} 7.
Bb2 {[%clk 0:09:54.3]} 7... O-O {[%clk 0:09:51.6]} 8. c4 {[%clk 0:09:55.4]} 8...
c5 {[%clk 0:09:52.6]} 9. cxd5 {[%clk 0:09:46]} 9... Nxd5 {[%clk 0:09:41.4]} 10.
Nbd2 {[%clk 0:09:47.1]} 10... Nd7 {[%clk 0:09:18]} 11. Nc4 {[%clk 0:09:38.8]}
11... b5 {[%clk 0:08:47.2]} 12. Ncd2 {[%clk 0:09:20.4]} 12... Bf6 {[%clk
0:08:23.3]} 13. Bxf6 {[%clk 0:09:02.2]} 13... Qxf6 {[%clk 0:08:23.1]} 14. Ne4
{[%clk 0:08:53.3]} 14... Qe7 {[%clk 0:08:23.1]} 15. Rc1 {[%clk 0:08:36.3]} 15...
Rac8 {[%clk 0:08:06.9]} 16. Qd2 {[%clk 0:08:31]} 16... b4 {[%clk 0:07:28.8]} 17.
Qg5 {[%clk 0:07:48.2]} 17... f6 {[%clk 0:07:23.7]} 18. Qh4 {[%clk 0:07:44.6]}
18... Kh8 {[%clk 0:05:50]} 19. Rc2 {[%clk 0:07:24]} 19... g5 {[%clk 0:05:39.4]}
20. Qh5 {[%clk 0:07:24.5]} 20... Rg8 {[%clk 0:05:28.7]} 21. Rfc1 {[%clk
0:06:24.4]} 21... Rg6 {[%clk 0:04:30.1]} 22. d4 {[%clk 0:03:12.2]} 22... Nf4
{[%clk 0:04:25.6]} 23. gxf4 {[%clk 0:03:04.3]} 23... Bxe4 {[%clk 0:04:26.1]} 24.
Rd2 {[%clk 0:02:55]} 24... gxf4 {[%clk 0:04:12.3]} 25. Kh1 {[%clk 0:02:36.4]}
25... Rcg8 {[%clk 0:04:08.1]} 26. Bh3 {[%clk 0:01:36.2]} 26... Qg7 {[%clk
0:04:04.8]} 27. Rdd1 {[%clk 0:01:02.8]} 27... Rh6 {[%clk 0:04:02.7]} 28. Qxh6
{[%clk 0:00:59.5]} 28... Qxh6 {[%clk 0:04:03.2]} 29. Bxe6 {[%clk 0:01:01.4]}
29... Qh5 {[%clk 0:03:06.1]} 30. Bxg8 {[%clk 0:00:46.8]} 30... Bxf3+ {[%clk
0:03:07]} 31. exf3 {[%clk 0:00:47.6]} 31... Qxf3+ {[%clk 0:03:08.6]} 32. Kg1
{[%clk 0:00:49.5]} 32... Kxg8 {[%clk 0:03:06.1]} 33. dxc5 {[%clk 0:00:47.3]}
33... Ne5 {[%clk 0:03:01.8]} 34. c6 {[%clk 0:00:40.7]} 34... Nxc6 {[%clk
0:02:58.2]} 35. Rd7 {[%clk 0:00:41.4]} 35... Qg4+ {[%clk 0:02:58.6]} 0-1

[Event "GrandPrix_30.05"]
[Site "Chess.com"]
[Date "2020.05.30"]
[Round "7"]
[White "cantdefyme"]
[Black "SergeyVashchilov"]
[Result "0-1"]
[WhiteElo "1897"]
[BlackElo "2033"]
[TimeControl "600+2"]
[EndTime "11:24:53 PDT"]
[Termination "SergeyVashchilov won on time"]

1. e4 {[%clk 0:10:01.9]} 1... e6 {[%clk 0:10:00.8]} 2. d4 {[%clk 0:10:01.7]}
2... d5 {[%clk 0:10:01.9]} 3. Nc3 {[%clk 0:10:02.4]} 3... Bb4 {[%clk 0:10:02.2]}
4. e5 {[%clk 0:10:02.6]} 4... Qd7 {[%clk 0:10:03.2]} 5. a3 {[%clk 0:10:00.7]}
5... Bxc3+ {[%clk 0:10:04.4]} 6. bxc3 {[%clk 0:10:02.6]} 6... b6 {[%clk
0:10:05.7]} 7. Qg4 {[%clk 0:09:51]} 7... f5 {[%clk 0:10:06]} 8. Qg3 {[%clk
0:09:40.7]} 8... Ba6 {[%clk 0:10:06.2]} 9. Bxa6 {[%clk 0:09:38.1]} 9... Nxa6
{[%clk 0:10:08.1]} 10. a4 {[%clk 0:09:32.4]} 10... Nb8 {[%clk 0:10:08.9]} 11. a5
{[%clk 0:09:31.1]} 11... Nc6 {[%clk 0:10:09.9]} 12. axb6 {[%clk 0:09:30.6]}
12... cxb6 {[%clk 0:10:11.8]} 13. Nh3 {[%clk 0:09:26.8]} 13... Nge7 {[%clk
0:10:07.3]} 14. Nf4 {[%clk 0:09:23.8]} 14... O-O {[%clk 0:10:01.2]} 15. Ba3
{[%clk 0:09:15.7]} 15... Rf7 {[%clk 0:09:55.4]} 16. h4 {[%clk 0:08:35]} 16...
Na5 {[%clk 0:09:03.8]} 17. h5 {[%clk 0:07:49.4]} 17... h6 {[%clk 0:09:03.5]} 18.
O-O {[%clk 0:07:11.1]} 18... Nc4 {[%clk 0:08:51.4]} 19. Bb4 {[%clk 0:07:00.9]}
19... a5 {[%clk 0:08:50.2]} 20. Rfd1 {[%clk 0:05:51.1]} 20... Rc8 {[%clk
0:08:46.7]} 21. Ba3 {[%clk 0:05:34.8]} 21... Rff8 {[%clk 0:06:49.7]} 22. Bxe7
{[%clk 0:05:32.8]} 22... Qxe7 {[%clk 0:06:50.2]} 23. Ng6 {[%clk 0:05:29.5]}
23... Qg5 {[%clk 0:06:18.2]} 24. Nxf8 {[%clk 0:04:02.9]} 24... Rxf8 {[%clk
0:06:20.1]} 25. Qxg5 {[%clk 0:02:40.3]} 25... hxg5 {[%clk 0:06:22]} 26. g3
{[%clk 0:02:36.5]} 26... Kh7 {[%clk 0:06:20.1]} 27. Kg2 {[%clk 0:02:34.7]} 27...
Kh6 {[%clk 0:06:20]} 28. Rh1 {[%clk 0:02:33.5]} 28... Rc8 {[%clk 0:06:20.8]} 29.
g4 {[%clk 0:02:31.1]} 29... f4 {[%clk 0:06:15.3]} 30. Rhb1 {[%clk 0:01:55.4]}
30... Rc6 {[%clk 0:06:14.4]} 31. Rb5 {[%clk 0:01:42.2]} 31... Nd2 {[%clk
0:06:13.1]} 32. Ra3 {[%clk 0:01:38.6]} 32... Kh7 {[%clk 0:06:03.5]} 33. Ra2
{[%clk 0:00:57.2]} 33... Nc4 {[%clk 0:05:34.8]} 34. Kf3 {[%clk 0:00:55.6]} 34...
Rc8 {[%clk 0:05:14.4]} 35. Ke2 {[%clk 0:00:53]} 35... g6 {[%clk 0:05:09]} 36.
Ra1 {[%clk 0:00:28.5]} 36... gxh5 {[%clk 0:05:03.9]} 37. gxh5 {[%clk 0:00:24.8]}
37... Kh6 {[%clk 0:04:36.2]} 38. Kf3 {[%clk 0:00:04]} 38... Kxh5 {[%clk
0:04:14.7]} 39. Rh1+ {[%clk 0:00:03]} 39... Kg6 {[%clk 0:04:16.2]} 40. Kg4
{[%clk 0:00:04.9]} 40... a4 {[%clk 0:04:17.3]} 41. Rh5 {[%clk 0:00:05.3]} 41...
a3 {[%clk 0:04:09.1]} 42. Rxg5+ {[%clk 0:00:07.2]} 42... Kf7 {[%clk 0:04:10.2]}
0-1

[Event "GrandPrix_30.05"]
[Site "Chess.com"]
[Date "2020.05.30"]
[Round "7"]
[White "RitvarsReimanis"]
[Black "Nitzan_Steinberg"]
[Result "0-1"]
[WhiteElo "2184"]
[BlackElo "2431"]
[TimeControl "600+2"]
[EndTime "11:25:06 PDT"]
[Termination "Nitzan_Steinberg won by resignation"]

1. d4 {[%clk 0:10:01.9]} 1... d5 {[%clk 0:09:56.9]} 2. Nf3 {[%clk 0:10:01.4]}
2... Nf6 {[%clk 0:09:57.2]} 3. c4 {[%clk 0:10:01.9]} 3... c6 {[%clk 0:09:56.1]}
4. e3 {[%clk 0:10:02.9]} 4... Bf5 {[%clk 0:09:54.4]} 5. Nc3 {[%clk 0:10:03.5]}
5... e6 {[%clk 0:09:50.1]} 6. Nh4 {[%clk 0:10:04.5]} 6... Be4 {[%clk 0:09:49.1]}
7. f3 {[%clk 0:10:05.8]} 7... Bg6 {[%clk 0:09:46.2]} 8. Bd2 {[%clk 0:10:07.3]}
8... Be7 {[%clk 0:09:41.3]} 9. Qb3 {[%clk 0:10:07.6]} 9... Qc7 {[%clk
0:09:25.9]} 10. Nxg6 {[%clk 0:10:08.1]} 10... hxg6 {[%clk 0:09:26.5]} 11. O-O-O
{[%clk 0:10:09.6]} 11... dxc4 {[%clk 0:09:03.5]} 12. Bxc4 {[%clk 0:10:11.5]}
12... a6 {[%clk 0:09:01.1]} 13. Be2 {[%clk 0:09:30.3]} 13... b5 {[%clk
0:08:45.6]} 14. Kb1 {[%clk 0:09:11.6]} 14... c5 {[%clk 0:08:42.6]} 15. dxc5
{[%clk 0:09:01]} 15... Nbd7 {[%clk 0:08:43]} 16. Qc2 {[%clk 0:08:28.7]} 16...
Nxc5 {[%clk 0:08:29.4]} 17. h4 {[%clk 0:07:08.6]} 17... Rc8 {[%clk 0:08:25.3]}
18. Rc1 {[%clk 0:06:43.6]} 18... Qb7 {[%clk 0:08:11.3]} 19. g4 {[%clk
0:06:15.8]} 19... O-O {[%clk 0:08:07.4]} 20. g5 {[%clk 0:05:04.9]} 20... Nh5
{[%clk 0:08:03.9]} 21. Rhg1 {[%clk 0:05:04.4]} 21... Rfd8 {[%clk 0:07:54.7]} 22.
Rcd1 {[%clk 0:03:30.9]} 22... b4 {[%clk 0:07:46]} 23. Na4 {[%clk 0:02:47.1]}
23... Nd3 {[%clk 0:06:30]} 24. Qb3 {[%clk 0:02:42]} 24... Nf2 {[%clk 0:06:29.7]}
25. Bc1 {[%clk 0:01:56.8]} 25... Nxd1 {[%clk 0:06:26.5]} 26. Bxd1 {[%clk
0:01:58.7]} 26... Qc6 {[%clk 0:06:05.8]} 27. Bc2 {[%clk 0:01:28.2]} 27... Qxf3
{[%clk 0:06:04.2]} 28. Nb6 {[%clk 0:01:23.2]} 28... Rc6 {[%clk 0:05:17.4]} 29.
Nc4 {[%clk 0:01:22.8]} 29... Qf2 {[%clk 0:05:18.5]} 30. Rd1 {[%clk 0:01:05.5]}
30... Rdc8 {[%clk 0:04:39.6]} 31. Bd3 {[%clk 0:00:51.7]} 31... Qxh4 {[%clk
0:04:02.4]} 32. Ne5 {[%clk 0:00:50.2]} 32... Rxc1+ {[%clk 0:03:56.4]} 33. Rxc1
{[%clk 0:00:49.8]} 33... Rxc1+ {[%clk 0:03:58.3]} 34. Kxc1 {[%clk 0:00:50.7]}
34... Qe1+ {[%clk 0:03:51.6]} 35. Kc2 {[%clk 0:00:47.5]} 35... Qxe3 {[%clk
0:03:42.3]} 36. Nc4 {[%clk 0:00:22.8]} 36... Qf2+ {[%clk 0:03:42.6]} 37. Kd1
{[%clk 0:00:21.6]} 37... Nf4 {[%clk 0:03:40.3]} 38. Qc2 {[%clk 0:00:15]} 38...
Qg1+ {[%clk 0:03:38.2]} 39. Kd2 {[%clk 0:00:15.5]} 39... Bxg5 {[%clk 0:03:39]}
40. Qa4 {[%clk 0:00:12.5]} 0-1

[Event "GrandPrix_30.05"]
[Site "Chess.com"]
[Date "2020.05.30"]
[Round "7"]
[White "Gurvich_Vitaly"]
[Black "bernereremit"]
[Result "1-0"]
[WhiteElo "2242"]
[BlackElo "2093"]
[TimeControl "600+2"]
[EndTime "11:25:11 PDT"]
[Termination "Gurvich_Vitaly won by resignation"]

1. e4 {[%clk 0:10:01.9]} 1... c5 {[%clk 0:09:59.5]} 2. Nf3 {[%clk 0:10:01.4]}
2... d6 {[%clk 0:10:00.9]} 3. d4 {[%clk 0:10:01.8]} 3... cxd4 {[%clk 0:10:02.8]}
4. Nxd4 {[%clk 0:10:03.3]} 4... Nf6 {[%clk 0:10:04.3]} 5. Nc3 {[%clk 0:10:04.5]}
5... a6 {[%clk 0:10:05.8]} 6. Nb3 {[%clk 0:10:05.5]} 6... e5 {[%clk 0:09:56.5]}
7. Bg5 {[%clk 0:10:05.1]} 7... Be7 {[%clk 0:09:55.8]} 8. Bxf6 {[%clk 0:10:03.9]}
8... Bxf6 {[%clk 0:09:56.4]} 9. Qd3 {[%clk 0:10:05.8]} 9... Be6 {[%clk
0:09:09.1]} 10. O-O-O {[%clk 0:10:04.2]} 10... Be7 {[%clk 0:09:09.5]} 11. g3
{[%clk 0:10:05.4]} 11... O-O {[%clk 0:09:08.5]} 12. Kb1 {[%clk 0:10:04.7]} 12...
Nd7 {[%clk 0:09:00.3]} 13. f4 {[%clk 0:10:03.2]} 13... b5 {[%clk 0:08:56.6]} 14.
f5 {[%clk 0:10:03]} 14... Bc4 {[%clk 0:08:56.7]} 15. Qf3 {[%clk 0:10:03.6]}
15... a5 {[%clk 0:08:28]} 16. Bxc4 {[%clk 0:09:58.4]} 16... bxc4 {[%clk
0:08:28.3]} 17. Nd2 {[%clk 0:10:00.3]} 17... Nb6 {[%clk 0:07:56.9]} 18. h4
{[%clk 0:09:57.5]} 18... a4 {[%clk 0:07:48.1]} 19. a3 {[%clk 0:09:58.1]} 19...
h6 {[%clk 0:07:29.7]} 20. Qe2 {[%clk 0:09:55.3]} 20... Rc8 {[%clk 0:07:28.3]}
21. Nf1 {[%clk 0:09:50.1]} 21... Qc7 {[%clk 0:07:10.1]} 22. Ne3 {[%clk
0:09:49.4]} 22... Qb7 {[%clk 0:07:11.5]} 23. Ka2 {[%clk 0:09:49.6]} 23... Rb8
{[%clk 0:07:10]} 24. Rb1 {[%clk 0:09:50.1]} 24... Rfc8 {[%clk 0:07:05.8]} 25. g4
{[%clk 0:09:48.3]} 25... d5 {[%clk 0:06:45.9]} 26. Nexd5 {[%clk 0:09:47.5]}
26... Nxd5 {[%clk 0:06:40.4]} 27. Nxd5 {[%clk 0:09:49.4]} 27... Bc5 {[%clk
0:06:32.2]} 28. c3 {[%clk 0:08:15.1]} 28... Qb3+ {[%clk 0:05:43.4]} 29. Ka1
{[%clk 0:08:15.4]} 29... Rd8 {[%clk 0:05:39.2]} 30. Qd1 {[%clk 0:08:06.1]} 30...
Qb5 {[%clk 0:05:22.6]} 31. Qc2 {[%clk 0:08:02]} 31... Qa6 {[%clk 0:05:07.2]} 32.
g5 {[%clk 0:06:38]} 32... h5 {[%clk 0:04:57.4]} 33. Rbd1 {[%clk 0:06:32.7]}
33... Kf8 {[%clk 0:04:38.4]} 34. Rd2 {[%clk 0:05:58.6]} 34... Rb3 {[%clk
0:04:35.7]} 35. Rhd1 {[%clk 0:05:57.5]} 35... Rdb8 {[%clk 0:04:28.2]} 36. f6
{[%clk 0:05:44.2]} 36... g6 {[%clk 0:04:26.2]} 37. Nb4 {[%clk 0:05:13.9]} 37...
Qb6 {[%clk 0:04:02.1]} 38. Nc6 {[%clk 0:04:24.2]} 38... Qxc6 {[%clk 0:03:14.4]}
39. Rd8+ {[%clk 0:04:23.3]} 39... Qe8 {[%clk 0:03:11]} 40. Rxe8+ {[%clk
0:04:23.7]} 40... Rxe8 {[%clk 0:03:06.8]} 41. Rd5 {[%clk 0:04:10.7]} 41... Be3
{[%clk 0:01:25.4]} 42. Qd1 {[%clk 0:04:04.7]} 42... Bf2 {[%clk 0:01:13.1]} 43.
Rd8 {[%clk 0:04:03.1]} 43... Rb8 {[%clk 0:01:12.4]} 44. Rxe8+ {[%clk 0:04:03.4]}
44... Rxe8 {[%clk 0:01:12]} 45. Qd6+ {[%clk 0:04:02.8]} 45... Kg8 {[%clk
0:01:12.4]} 46. Qe7 {[%clk 0:03:42.4]} 46... Rf8 {[%clk 0:01:02.9]} 47. Qxe5
{[%clk 0:03:40.5]} 47... Bxh4 {[%clk 0:01:03.9]} 48. Qf4 {[%clk 0:03:41.6]}
48... Be1 {[%clk 0:01:02.8]} 49. e5 {[%clk 0:03:41.7]} 49... Re8 {[%clk
0:01:00]} 50. Qxc4 {[%clk 0:03:39.4]} 50... h4 {[%clk 0:01:00.3]} 51. e6 {[%clk
0:03:37.8]} 51... Rxe6 {[%clk 0:01:00]} 52. Qc8+ {[%clk 0:03:38.5]} 52... Kh7
{[%clk 0:01:00.5]} 53. Qf8 {[%clk 0:03:39.1]} 1-0

[Event "GrandPrix_30.05"]
[Site "Chess.com"]
[Date "2020.05.30"]
[Round "7"]
[White "Lukianoo"]
[Black "Meri-Arabidze"]
[Result "1-0"]
[WhiteElo "2598"]
[BlackElo "2292"]
[TimeControl "600+2"]
[EndTime "11:25:19 PDT"]
[Termination "Lukianoo won by resignation"]

1. e4 {[%clk 0:09:58.8]} 1... c5 {[%clk 0:09:58.1]} 2. Nf3 {[%clk 0:09:58.5]}
2... e6 {[%clk 0:09:58.7]} 3. c3 {[%clk 0:09:59.3]} 3... Nf6 {[%clk 0:09:54.4]}
4. e5 {[%clk 0:10:00]} 4... Nd5 {[%clk 0:09:55.4]} 5. d4 {[%clk 0:10:00.5]} 5...
cxd4 {[%clk 0:09:56.6]} 6. cxd4 {[%clk 0:10:00.9]} 6... Nc6 {[%clk 0:09:57.6]}
7. Bc4 {[%clk 0:10:00.2]} 7... d6 {[%clk 0:09:54.2]} 8. O-O {[%clk 0:09:58.6]}
8... Be7 {[%clk 0:09:09.7]} 9. Qe2 {[%clk 0:09:57.8]} 9... O-O {[%clk
0:09:09.1]} 10. Rd1 {[%clk 0:09:58.7]} 10... Qc7 {[%clk 0:08:24.2]} 11. Bxd5
{[%clk 0:09:51.8]} 11... exd5 {[%clk 0:08:24]} 12. Nc3 {[%clk 0:09:53.1]} 12...
Be6 {[%clk 0:08:12.2]} 13. Nb5 {[%clk 0:09:52.9]} 13... Qd7 {[%clk 0:07:49.8]}
14. Bf4 {[%clk 0:09:53.3]} 14... dxe5 {[%clk 0:07:34.2]} 15. dxe5 {[%clk
0:09:51.8]} 15... a6 {[%clk 0:06:49.4]} 16. Nc3 {[%clk 0:09:42.1]} 16... Rad8
{[%clk 0:06:44.5]} 17. Be3 {[%clk 0:09:20.1]} 17... h6 {[%clk 0:05:25.3]} 18. h3
{[%clk 0:09:17.2]} 18... b5 {[%clk 0:05:20.9]} 19. Rac1 {[%clk 0:09:06.1]} 19...
Qb7 {[%clk 0:04:59.5]} 20. Nd4 {[%clk 0:08:48.7]} 20... Nxd4 {[%clk 0:04:48.7]}
21. Bxd4 {[%clk 0:08:45.6]} 21... Bg5 {[%clk 0:04:33.5]} 22. Be3 {[%clk
0:08:22.9]} 22... d4 {[%clk 0:03:40.4]} 23. Bxg5 {[%clk 0:08:22.8]} 23... hxg5
{[%clk 0:03:40.9]} 24. Ne4 {[%clk 0:08:23.9]} 24... g4 {[%clk 0:03:21.4]} 25.
hxg4 {[%clk 0:08:08.4]} 25... Bxa2 {[%clk 0:02:48.8]} 26. Nd6 {[%clk 0:06:37.2]}
26... Qd5 {[%clk 0:02:38.7]} 27. Nf5 {[%clk 0:06:37.7]} 27... Rde8 {[%clk
0:02:05]} 28. f4 {[%clk 0:06:04.3]} 28... Bc4 {[%clk 0:02:05.4]} 29. Qf2 {[%clk
0:06:03.8]} 29... d3 {[%clk 0:02:03.6]} 30. Rc3 {[%clk 0:05:33.6]} 30... Qe6
{[%clk 0:01:43.6]} 31. b3 {[%clk 0:05:28.4]} 31... Bxb3 {[%clk 0:01:35.8]} 32.
Rdxd3 {[%clk 0:05:27]} 32... Bd5 {[%clk 0:01:22]} 33. Qh4 {[%clk 0:05:03.4]}
33... f6 {[%clk 0:00:23]} 34. Rh3 {[%clk 0:04:58.7]} 34... Rd8 {[%clk
0:00:14.2]} 35. Qh7+ {[%clk 0:03:52.3]} 35... Kf7 {[%clk 0:00:14.3]} 36. Rc7+
{[%clk 0:03:24.3]} 36... Rd7 {[%clk 0:00:13.6]} 37. Qxg7+ {[%clk 0:03:24]} 37...
Ke8 {[%clk 0:00:13.7]} 38. Rxd7 {[%clk 0:03:24.5]} 38... Qxd7 {[%clk 0:00:10.1]}
39. Nd6+ {[%clk 0:03:24.8]} 1-0

[Event "GrandPrix_30.05"]
[Site "Chess.com"]
[Date "2020.05.30"]
[Round "7"]
[White "LuckyLuka04"]
[Black "ninullia"]
[Result "0-1"]
[WhiteElo "2149"]
[BlackElo "2289"]
[TimeControl "600+2"]
[EndTime "11:25:19 PDT"]
[Termination "ninullia won by resignation"]

1. d4 {[%clk 0:10:01.9]} 1... Nf6 {[%clk 0:09:56.2]} 2. Nf3 {[%clk 0:10:03.1]}
2... d5 {[%clk 0:09:55.2]} 3. Bf4 {[%clk 0:10:01.7]} 3... c5 {[%clk 0:09:49.3]}
4. e3 {[%clk 0:10:02.8]} 4... Nc6 {[%clk 0:09:47.6]} 5. Nbd2 {[%clk 0:09:59.8]}
5... Bg4 {[%clk 0:09:46.7]} 6. c3 {[%clk 0:09:53]} 6... e6 {[%clk 0:09:45.9]} 7.
Qb3 {[%clk 0:09:51.3]} 7... Qc8 {[%clk 0:09:41.7]} 8. h3 {[%clk 0:09:50.2]} 8...
Bh5 {[%clk 0:09:41]} 9. Ne5 {[%clk 0:09:45.1]} 9... Nxe5 {[%clk 0:09:33.8]} 10.
dxe5 {[%clk 0:09:29.8]} 10... c4 {[%clk 0:09:30.3]} 11. Qa4+ {[%clk 0:08:52.1]}
11... Nd7 {[%clk 0:09:29.8]} 12. e4 {[%clk 0:08:15.3]} 12... Be7 {[%clk
0:09:09.5]} 13. exd5 {[%clk 0:08:11.2]} 13... exd5 {[%clk 0:09:11.4]} 14. g4
{[%clk 0:08:10]} 14... Bg6 {[%clk 0:09:11.7]} 15. Bg2 {[%clk 0:08:10.7]} 15...
O-O {[%clk 0:09:10.8]} 16. O-O {[%clk 0:08:03.3]} 16... Nc5 {[%clk 0:09:11]} 17.
Qd1 {[%clk 0:07:59.3]} 17... Nd3 {[%clk 0:09:01]} 18. Bg3 {[%clk 0:07:36.4]}
18... Nxb2 {[%clk 0:08:52.6]} 19. Qf3 {[%clk 0:07:17.2]} 19... Rd8 {[%clk
0:08:47.6]} 20. h4 {[%clk 0:06:49.2]} 20... Qe6 {[%clk 0:08:26.9]} 21. Bh3
{[%clk 0:06:31.4]} 21... b5 {[%clk 0:06:50.3]} 22. Qg2 {[%clk 0:06:19.2]} 22...
Bd3 {[%clk 0:06:33.6]} 23. Rfe1 {[%clk 0:06:10.5]} 23... b4 {[%clk 0:06:26.3]}
24. Nf3 {[%clk 0:05:02.8]} 24... bxc3 {[%clk 0:06:12.4]} 25. g5 {[%clk
0:04:58.5]} 25... Qb6 {[%clk 0:04:30.3]} 26. e6 {[%clk 0:04:55.4]} 26... Be4
{[%clk 0:03:41]} 27. exf7+ {[%clk 0:04:41.2]} 27... Kh8 {[%clk 0:03:42.1]} 28.
Be5 {[%clk 0:03:49]} 28... Nd3 {[%clk 0:03:27.6]} 29. Bxc3 {[%clk 0:02:33.5]}
29... Bc5 {[%clk 0:03:24.3]} 30. Reb1 {[%clk 0:01:25.3]} 30... Bxf2+ {[%clk
0:03:15.9]} 31. Kh1 {[%clk 0:01:18.6]} 31... Qe3 {[%clk 0:03:13.2]} 32. Bg4
{[%clk 0:01:05.3]} 32... Nf4 {[%clk 0:03:10.7]} 33. h5 {[%clk 0:00:15.9]} 33...
Nxg2 {[%clk 0:03:03.7]} 34. h6 {[%clk 0:00:11.6]} 34... Qxc3 {[%clk 0:03:03.5]}
0-1

[Event "GrandPrix_30.05"]
[Site "Chess.com"]
[Date "2020.05.30"]
[Round "7"]
[White "Kiril1965"]
[Black "Firegrizzly"]
[Result "1-0"]
[WhiteElo "2452"]
[BlackElo "2213"]
[TimeControl "600+2"]
[EndTime "11:25:20 PDT"]
[Termination "Kiril1965 won by resignation"]

1. e4 {[%clk 0:10:01.8]} 1... c5 {[%clk 0:09:57.7]} 2. Nf3 {[%clk 0:09:59.6]}
2... d6 {[%clk 0:09:57.7]} 3. Bb5+ {[%clk 0:09:55.9]} 3... Nd7 {[%clk
0:09:57.8]} 4. c3 {[%clk 0:09:56]} 4... Nf6 {[%clk 0:09:57.5]} 5. Qe2 {[%clk
0:09:57.1]} 5... a6 {[%clk 0:09:58.2]} 6. Ba4 {[%clk 0:09:57.4]} 6... b5 {[%clk
0:09:56.6]} 7. Bc2 {[%clk 0:09:57]} 7... e5 {[%clk 0:09:57.7]} 8. a4 {[%clk
0:09:56.9]} 8... Rb8 {[%clk 0:09:56.2]} 9. d4 {[%clk 0:09:46.1]} 9... Be7 {[%clk
0:09:53.5]} 10. O-O {[%clk 0:09:45.5]} 10... Qc7 {[%clk 0:09:45.6]} 11. Na3
{[%clk 0:09:38.3]} 11... c4 {[%clk 0:09:02.7]} 12. Bg5 {[%clk 0:09:14.6]} 12...
O-O {[%clk 0:08:55.7]} 13. Rfd1 {[%clk 0:09:14.4]} 13... h6 {[%clk 0:08:55.3]}
14. Bh4 {[%clk 0:09:04.7]} 14... Re8 {[%clk 0:08:54.1]} 15. Qe1 {[%clk 0:08:05]}
15... Nf8 {[%clk 0:08:31.4]} 16. axb5 {[%clk 0:08:00.6]} 16... axb5 {[%clk
0:08:30.7]} 17. b4 {[%clk 0:07:52.6]} 17... Bg4 {[%clk 0:08:19.3]} 18. Qe3
{[%clk 0:07:38.1]} 18... Ng6 {[%clk 0:08:20.1]} 19. Bg3 {[%clk 0:07:36.2]} 19...
Bd7 {[%clk 0:07:51.9]} 20. Nb1 {[%clk 0:07:27.8]} 20... Bf8 {[%clk 0:07:47.8]}
21. Nbd2 {[%clk 0:07:27.9]} 21... Ra8 {[%clk 0:07:36.6]} 22. h3 {[%clk 0:07:23]}
22... Nh5 {[%clk 0:07:32.4]} 23. Nf1 {[%clk 0:07:16.5]} 23... Ngf4 {[%clk
0:07:17.2]} 24. Bh2 {[%clk 0:07:00.2]} 24... g5 {[%clk 0:07:07.3]} 25. Ng3
{[%clk 0:06:50]} 25... Bg7 {[%clk 0:07:04.5]} 26. Rxa8 {[%clk 0:05:32.1]} 26...
Rxa8 {[%clk 0:07:02.7]} 27. Nxh5 {[%clk 0:05:32.8]} 27... Nxh5 {[%clk
0:07:02.6]} 28. dxe5 {[%clk 0:05:33.8]} 28... dxe5 {[%clk 0:07:01.6]} 29. Qc5
{[%clk 0:05:34]} 29... Qxc5 {[%clk 0:06:52.5]} 30. bxc5 {[%clk 0:05:35.9]} 30...
Be6 {[%clk 0:06:47.4]} 31. Bxe5 {[%clk 0:05:25.2]} 31... Bxe5 {[%clk 0:06:42.4]}
32. Nxe5 {[%clk 0:05:25.7]} 32... Nf4 {[%clk 0:06:44]} 33. Kf1 {[%clk
0:05:07.3]} 33... Ra3 {[%clk 0:06:19.7]} 34. g3 {[%clk 0:04:36.2]} 34... Bxh3+
{[%clk 0:06:05.2]} 35. Ke1 {[%clk 0:04:34.9]} 35... Ne6 {[%clk 0:05:53.9]} 36.
Rd5 {[%clk 0:04:26.1]} 36... Rxc3 {[%clk 0:05:51.1]} 37. Kd2 {[%clk 0:04:26.2]}
37... b4 {[%clk 0:05:40.9]} 38. c6 {[%clk 0:04:22.6]} 38... Bg2 {[%clk
0:05:40.1]} 39. Rd7 {[%clk 0:03:55.2]} 39... Ra3 {[%clk 0:05:10.6]} 40. Nxc4
{[%clk 0:03:49.1]} 40... Rc3 {[%clk 0:04:43]} 41. Ne3 {[%clk 0:03:35.8]} 41...
Bf3 {[%clk 0:04:36.7]} 42. Nd5 {[%clk 0:03:34.5]} 42... Rxc2+ {[%clk 0:03:48.5]}
43. Kxc2 {[%clk 0:03:32.7]} 43... Nd4+ {[%clk 0:03:46.5]} 44. Kd3 {[%clk
0:03:26.7]} 44... Nxc6 {[%clk 0:03:48.4]} 45. Ke3 {[%clk 0:03:23.8]} 45... Bg2
{[%clk 0:03:18.8]} 46. Ne7+ {[%clk 0:03:06.6]} 46... Nxe7 {[%clk 0:03:18.3]} 47.
Rxe7 {[%clk 0:03:07.6]} 47... h5 {[%clk 0:03:11.2]} 48. Re5 {[%clk 0:02:58.3]}
48... f6 {[%clk 0:03:11.4]} 49. Rb5 {[%clk 0:02:39.1]} 49... h4 {[%clk
0:03:10.5]} 50. gxh4 {[%clk 0:02:39.4]} 50... gxh4 {[%clk 0:03:11.6]} 51. f3
{[%clk 0:02:38.5]} 51... h3 {[%clk 0:03:05.7]} 52. Kf2 {[%clk 0:02:39.3]} 52...
Kf7 {[%clk 0:03:03.8]} 53. Rxb4 {[%clk 0:02:38.3]} 53... f5 {[%clk 0:03:00.5]}
54. e5 {[%clk 0:02:28.1]} 54... Ke6 {[%clk 0:02:59.7]} 55. f4 {[%clk 0:02:25.9]}
55... Ke7 {[%clk 0:02:49]} 56. Kg3 {[%clk 0:02:24.1]} 56... Ke6 {[%clk
0:02:48.2]} 57. Rd4 {[%clk 0:02:23.9]} 57... Bf1 {[%clk 0:02:45.6]} 58. Rd6+
{[%clk 0:02:22.5]} 58... Ke7 {[%clk 0:02:46.5]} 59. Rf6 {[%clk 0:02:22.9]} 59...
Bd3 {[%clk 0:02:44.8]} 60. Kxh3 {[%clk 0:02:21.4]} 1-0